bitfinex/quotes_BTCUSD_20220204
["timestamp","ask_amount","ask_price","bid_price","bid_amount"]
[1644000553569,0.061865,40425.0,40421.0,2.8862907]
[1644000553768,0.061865,40425.0,40422.0,2.53544675]
[1644000554368,0.061865,40425.0,40422.0,2.58544675]
[1644000554570,0.061865,40425.0,40422.0,2.53544675]
[1644000555610,0.35,40429.0,40423.0,0.05]
[1644000555611,0.061861,40428.0,40423.0,0.05]
[1644000555807,0.061861,40428.0,40423.0,2.40241768]
[1644000556608,0.061861,40428.0,40423.0,2.35241768]
[1644000556808,0.061861,40428.0,40424.0,2.35241768]
[1644000557011,0.061861,40428.0,40425.0,2.33475629]
[1644000557209,0.061861,40428.0,40426.0,2.33475629]
[1644000557409,0.061861,40428.0,40427.0,2.33475629]
[1644000557609,0.061861,40428.0,40422.0,2.33475629]
[1644000558661,0.123724,40428.0,40422.0,2.33475629]
[1644000558860,0.123724,40428.0,40415.0,0.03740811]
[1644000558861,0.14366602,40418.0,40415.0,0.03740811]
[1644000559062,0.20554402,40418.0,40415.0,0.01857983]
[1644000559459,0.20554402,40418.0,40415.0,2.22703077]
[1644000559860,0.05,40417.0,40415.0,2.22703077]
[1644000560063,0.061879,40417.0,40415.0,2.22703077]
[1644000561064,0.061879,40417.0,40415.0,2.20845094]
[1644000561260,0.311879,40417.0,40416.0,2.24663932]
[1644000561462,0.361879,40417.0,40416.0,2.24663932]
[1644000561663,0.461879,40417.0,40416.0,2.24663932]
[1644000562507,0.461879,40417.0,40416.0,2.52780588]
[1644000562708,0.061883,40416.0,40412.0,0.020862]
[1644000562908,0.39888,40415.0,40414.0,0.00083938]
[1644000563108,0.44888,40415.0,40414.0,0.00083938]
[1644000563307,0.59888,40415.0,40414.0,0.00083938]
[1644000563909,0.54888,40415.0,40411.0,0.02023658]
[1644000564111,0.336993,40414.0,40412.0,0.00044777]
[1644000564309,0.161887,40415.0,40412.0,0.00044777]
[1644000564509,0.061887,40415.0,40412.0,2.45170736]
[1644000565109,0.061887,40415.0,40412.0,2.45125959]
[1644000565309,0.061887,40415.0,40413.0,2.45125959]
[1644000565510,0.061887,40415.0,40411.0,0.00044778]
[1644000565811,0.336993,40414.0,40412.0,2.45125959]
[1644000566062,0.061887,40415.0,40412.0,2.45125959]
[1644000566458,0.061887,40415.0,40413.0,2.06345008]
[1644000566758,0.336993,40414.0,40411.0,0.00044778]
[1644000567159,0.1,40414.0,40412.0,2.06345008]
[1644000567360,0.223777,40414.0,40412.0,2.06345008]
[1644000568261,0.123777,40414.0,40412.0,2.06345008]
[1644000568459,0.123777,40414.0,40412.0,2.06336021]
[1644000568860,0.123777,40414.0,40413.0,2.00846217]
[1644000570504,0.123777,40414.0,40413.0,2.46282808]
[1644000571107,0.173777,40414.0,40413.0,2.46282808]
[1644000572606,0.173777,40414.0,40413.0,2.49757696]
[1644000573657,0.173777,40414.0,40410.0,2.49757696]
[1644000573860,0.061888,40413.0,40410.0,2.49757696]
[1644000574862,0.173777,40413.0,40410.0,2.49757696]
[1644000576083,0.173777,40413.0,40411.0,2.46246655]
[1644000576265,0.173777,40413.0,40412.0,2.46246655]
[1644000576567,0.111889,40413.0,40412.0,2.12037449]
[1644000576764,0.061889,40413.0,40412.0,2.12037449]
[1644000577064,0.05,40412.0,40408.0,0.01904681]
[1644000577311,0.05,40412.0,40410.0,0.0007934]
[1644000577505,0.05,40412.0,40411.0,2.12037449]
[1644000578506,0.05,40412.0,40409.0,2.0737659]
[1644000578705,0.123777,40413.0,40409.0,2.0737659]
[1644000579113,0.173777,40413.0,40409.0,2.0737659]
[1644000579506,0.111888,40413.0,40409.0,2.07297249]
[1644000579707,0.111888,40413.0,40410.0,2.07297249]
[1644000579906,0.061888,40413.0,40410.0,2.07297249]
[1644000580606,0.1,40414.0,40410.0,2.07297249]
[1644000580807,0.1,40415.0,40410.0,2.07297249]
[1644000581056,0.1,40416.0,40411.0,2.51129131]
[1644000581258,0.1,40416.0,40412.0,2.51129131]
[1644000581457,0.1,40416.0,40409.0,0.00079621]
[1644000581458,0.061883,40414.0,40413.0,2.51129131]
[1644000582057,0.05,40415.0,40413.0,2.51129131]
[1644000582257,0.05,40414.0,40411.0,0.00079618]
[1644000582558,0.50035105,40417.0,40412.0,2.44586483]
[1644000582757,0.51223105,40417.0,40413.0,0.25946813]
[1644000583058,0.25035105,40417.0,40413.0,0.05]
[1644000583257,0.25035105,40417.0,40413.0,0.05079617]
[1644000583457,0.336993,40416.0,40413.0,0.00079617]
[1644000583657,0.336993,40416.0,40413.0,0.05079617]
[1644000584261,0.336993,40416.0,40413.0,0.05]
[1644000584658,0.25035105,40417.0,40413.0,0.05]
[1644000584911,0.25035105,40417.0,40416.0,0.05]
[1644000585211,0.586993,40417.0,40416.0,0.05]
[1644000585607,0.586993,40417.0,40413.0,0.05]
[1644000585807,0.25035105,40417.0,40414.0,0.00079565]
[1644000586011,0.25,40417.0,40414.0,0.26875868]
[1644000586209,0.25,40417.0,40414.0,0.00079565]
[1644000586710,0.25,40417.0,40413.0,0.05]
[1644000586911,0.25035105,40417.0,40413.0,0.05079566]
[1644000587908,0.25035105,40417.0,40413.0,0.05]
[1644000588110,0.25035105,40417.0,40413.0,0.05079569]
[1644000589162,0.25035105,40417.0,40413.0,0.05]
[1644000589361,0.25035105,40417.0,40413.0,0.05079569]
[1644000589565,0.25,40417.0,40413.0,0.05079569]
[1644000590363,0.25,40417.0,40413.0,0.05]
[1644000590563,0.25,40417.0,40414.0,0.24851369]
[1644000590763,0.25,40417.0,40416.0,0.05]
[1644000590764,0.24988554,40417.0,40416.0,0.05]
[1644000591162,0.24988554,40417.0,40416.0,0.386993]
[1644000591362,0.24988554,40417.0,40416.0,2.85784109]
[1644000593409,0.24988554,40417.0,40416.0,2.91970209]
[1644000594416,0.24988554,40417.0,40416.0,2.85784109]
[1644000595211,0.29988554,40417.0,40416.0,2.52084809]
[1644000596874,0.24988554,40417.0,40416.0,2.52084809]
[1644000598075,0.24988554,40417.0,40416.0,2.47084809]
[1644000598275,0.24988554,40417.0,40416.0,2.10079048]
[1644000598676,0.24988554,40417.0,40416.0,2.05079048]
[1644000598877,0.24988554,40417.0,40416.0,2.09440419]
[1644000599176,0.24988554,40417.0,40414.0,0.00075224]
[1644000599377,0.24988554,40417.0,40415.0,0.05]
[1644000599577,0.24988554,40417.0,40415.0,2.14440419]
[1644000600014,0.24988554,40417.0,40416.0,0.336993]
[1644000600211,0.24988554,40417.0,40416.0,2.09440419]
[1644000600410,0.24988554,40417.0,40416.0,2.43139719]
[1644000601427,0.05,40429.0,40416.0,2.43139719]
[1644000601428,0.00035105,40422.0,40417.0,0.265472]
[1644000601614,1.05e-06,40423.0,40421.0,1.60751564]
[1644000601812,0.00035095,40431.0,40422.0,0.436339]
[1644000602012,0.00035095,40431.0,40430.0,1.865381]
[1644000602213,0.00300669,40442.0,40430.0,1.865381]
[1644000602214,0.003,40444.0,40432.0,1.55]
[1644000602413,0.5302,40451.0,40432.0,1.55]
[1644000602414,0.5302,40451.0,40444.0,1.55]
[1644000602619,0.5302,40451.0,40448.0,1.936687]
[1644000602812,0.09099211,40454.0,40448.0,1.936687]
[1644000602813,0.002,40454.0,40450.0,1.815246]
[1644000603013,0.011,40459.0,40450.0,1.815246]
[1644000603014,0.011,40459.0,40453.0,0.05]
[1644000603213,0.011,40459.0,40454.0,0.59311734]
[1644000603412,0.0180831,40457.0,40455.0,0.336623]
[1644000603663,0.0180831,40457.0,40455.0,2.79943047]
[1644000604062,0.4947,40472.0,40457.0,1.55]
[1644000604265,0.4947,40483.0,40471.0,0.05]
[1644000604463,0.4947,40483.0,40458.0,0.27790134]
[1644000604464,0.006,40479.0,40474.0,0.05]
[1644000604664,0.006,40479.0,40474.0,0.314543]
[1644000604863,0.006,40479.0,40474.0,0.364543]
[1644000605063,0.006,40479.0,40474.0,0.74896233]
[1644000605266,0.006,40479.0,40474.0,2.56943344]
[1644000605464,0.006,40479.0,40461.0,0.05]
[1644000605664,0.006,40479.0,40462.0,0.0494]
[1644000605863,0.006,40479.0,40464.0,0.05]
[1644000606064,0.11886893,40470.0,40465.0,2.23441411]
[1644000606264,0.006,40479.0,40466.0,2.18501411]
[1644000606465,0.006,40479.0,40472.0,0.38579858]
[1644000606466,0.28230092,40475.0,40472.0,0.38579858]
[1644000606868,0.33230092,40475.0,40472.0,0.38579858]
[1644000607066,0.28230092,40475.0,40472.0,0.38579858]
[1644000607323,0.000375,40475.0,40472.0,0.38579858]
[1644000607519,0.000375,40475.0,40474.0,0.05]
[1644000607718,0.000375,40475.0,40472.0,0.38579858]
[1644000608118,0.000375,40475.0,40472.0,2.94639191]
[1644000608317,0.000375,40475.0,40473.0,2.56059333]
[1644000609119,0.000375,40475.0,40473.0,2.61059333]
[1644000609519,0.000375,40475.0,40473.0,2.56059333]
[1644000610424,0.000375,40475.0,40474.0,0.386993]
[1644000610619,0.00080835,40476.0,40474.0,2.655099]
[1644000610820,0.00080835,40476.0,40475.0,2.268106]
[1644000611263,0.13831609,40478.0,40475.0,2.268106]
[1644000611664,0.09378368,40476.0,40475.0,2.268106]
[1644000611864,0.09378368,40476.0,40462.0,0.02025181]
[1644000611866,0.11557302,40469.0,40462.0,0.02025181]
[1644000612064,0.33864497,40475.0,40462.0,2.28835781]
[1644000612264,0.1,40471.0,40462.0,2.28835781]
[1644000612464,0.33864497,40475.0,40463.0,0.17750309]
[1644000612663,0.0494,40475.0,40463.0,2.37686384]
[1644000612865,0.00083891,40471.0,40463.0,2.19924704]
[1644000613069,0.00083891,40471.0,40464.0,0.336993]
[1644000613265,0.00083891,40471.0,40464.0,2.53635375]
[1644000613465,0.00083891,40471.0,40465.0,2.19936075]
[1644000613666,0.00083891,40471.0,40468.0,0.34628936]
[1644000613966,0.92878054,40478.0,40469.0,2.19936075]
[1644000614266,0.00083892,40470.0,40469.0,2.19936075]
[1644000614918,0.16919226,40472.0,40469.0,2.19936075]
[1644000614919,0.11919226,40472.0,40469.0,2.19936075]
[1644000615322,0.0008389,40472.0,40469.0,2.19936075]
[1644000616121,0.15,40478.0,40470.0,0.336993]
[1644000616320,0.15,40478.0,40468.0,0.39628936]
[1644000616321,0.16361436,40478.0,40468.0,0.39628936]
[1644000616521,0.00083887,40473.0,40468.0,0.44628936]
[1644000616820,0.00083887,40473.0,40470.0,0.05]
[1644000617422,0.00035213,40477.0,40470.0,0.05]
[1644000617619,0.00083886,40474.0,40470.0,0.05]
[1644000620860,0.25,40478.0,40470.0,0.06177186]
[1644000621054,0.25,40478.0,40470.0,2.46215581]
[1644000621255,0.2503521,40478.0,40470.0,2.46215581]
[1644000621452,0.2503521,40478.0,40473.0,0.085]
[1644000621853,0.2503521,40478.0,40473.0,2.54715581]
[1644000622324,0.15423271,40477.0,40473.0,2.54715581]
[1644000622513,0.336993,40476.0,40473.0,0.085]
[1644000622712,0.16160351,40470.0,40465.0,0.02043523]
[1644000622913,0.0494,40475.0,40465.0,0.02043523]
[1644000622914,0.10304729,40472.0,40465.0,0.02043523]
[1644000623118,0.46834464,40467.0,40465.0,0.02043523]
[1644000623315,0.336993,40466.0,40465.0,0.02043523]
[1644000623519,0.0994,40466.0,40464.0,0.01889391]
[1644000623714,0.336993,40465.0,40464.0,0.01889391]
[1644000623915,0.0494,40465.0,40464.0,0.01889391]
[1644000624715,0.0494,40465.0,40458.0,0.3031529]
[1644000624914,0.0494,40465.0,40460.0,0.13976358]
[1644000625117,0.06829391,40465.0,40461.0,2.55793563]
[1644000625315,0.06829391,40465.0,40462.0,2.89492863]
[1644000625517,0.06829391,40465.0,40463.0,2.55793563]
[1644000625518,0.01889391,40465.0,40463.0,2.55793563]
[1644000625714,0.01889391,40465.0,40464.0,0.664709]
[1644000625916,0.06829391,40465.0,40464.0,2.82264463]
[1644000628954,0.01889391,40465.0,40464.0,2.82264463]
[1644000629154,0.26889391,40465.0,40464.0,2.82264463]
[1644000629354,0.25,40465.0,40464.0,2.82264463]
[1644000631410,0.25,40465.0,40464.0,2.55793563]
[1644000631605,0.25,40465.0,40464.0,2.2586881]
[1644000632005,0.05,40464.0,40458.0,0.3031529]
[1644000632206,0.21155016,40464.0,40460.0,0.336993]
[1644000632406,0.21190226,40464.0,40462.0,0.264742]
[1644000632706,0.05,40464.0,40463.0,2.43628115]
[1644000634154,0.05,40464.0,40463.0,2.77327415]
[1644000634755,0.25,40465.0,40463.0,2.43628115]
[1644000634954,0.25,40465.0,40464.0,2.46809404]
[1644000635156,0.2503521,40465.0,40464.0,2.46809404]
[1644000635356,0.25,40465.0,40464.0,2.46809404]
[1644000635656,0.25,40465.0,40459.0,2.46809404]
[1644000635857,0.2503521,40465.0,40460.0,0.336993]
[1644000636059,0.2503521,40465.0,40462.0,0.264741]
[1644000636259,0.2503521,40465.0,40464.0,0.336958]
[1644000636260,0.25,40465.0,40464.0,0.336958]
[1644000636564,0.25,40465.0,40464.0,2.92229364]
[1644000637312,0.24990526,40465.0,40464.0,2.92229364]
[1644000637506,0.24990526,40465.0,40464.0,2.97229364]
[1644000638105,0.24990526,40465.0,40464.0,2.92229364]
[1644000640111,0.24990526,40465.0,40464.0,2.58533564]
[1644000640307,0.24990526,40465.0,40464.0,2.57799879]
[1644000640509,0.1613727,40469.0,40464.0,2.54895053]
[1644000640708,0.0011366,40467.0,40465.0,2.21195753]
[1644000640910,0.00078314,40467.0,40457.0,0.05]
[1644000641155,0.00078314,40467.0,40458.0,2.51511043]
[1644000641353,0.00078314,40467.0,40459.0,2.54895053]
[1644000641553,0.00035346,40468.0,40460.0,2.21195753]
[1644000641758,0.05,40469.0,40461.0,0.264755]
[1644000641759,0.00035346,40469.0,40461.0,0.264755]
[1644000641953,0.2848983,40471.0,40461.0,0.264755]
[1644000641954,0.00078891,40465.0,40461.0,2.47671253]
[1644000642152,0.00078891,40465.0,40462.0,2.21195753]
[1644000642353,0.00078891,40465.0,40463.0,0.336958]
[1644000642556,0.00078891,40465.0,40463.0,2.50599986]
[1644000642755,0.00035346,40466.0,40464.0,2.16904186]
[1644000642955,0.00080171,40466.0,40464.0,2.16904186]
[1644000643156,0.00080171,40466.0,40465.0,2.16904186]
[1644000643957,0.00035346,40469.0,40465.0,2.16904186]
[1644000644157,0.0008017,40468.0,40461.0,0.083]
[1644000644557,0.0008017,40468.0,40460.0,2.55292768]
[1644000644813,0.0008017,40468.0,40461.0,2.55292768]
[1644000645009,0.0008017,40468.0,40462.0,2.55292768]
[1644000645209,0.00035346,40469.0,40459.0,2.55292768]
[1644000645410,0.00079557,40467.0,40459.0,2.60292768]
[1644000645610,0.00079557,40467.0,40463.0,0.264731]
[1644000645807,0.00079557,40467.0,40463.0,2.86765868]
[1644000646008,0.00079557,40467.0,40464.0,2.55292768]
[1644000646208,0.00079557,40467.0,40465.0,0.336951]
[1644000646409,0.00035346,40469.0,40466.0,0.36007697]
[1644000646610,0.00114902,40468.0,40466.0,0.36007697]
[1644000646808,0.00079556,40468.0,40466.0,0.36007697]
[1644000647014,0.00079556,40468.0,40467.0,0.336993]
[1644000647609,0.00035346,40473.0,40466.0,0.36007697]
[1644000647909,0.26412593,40474.0,40466.0,0.36007697]
[1644000647910,0.00079554,40470.0,40466.0,0.36007697]
[1644000648308,0.001149,40470.0,40466.0,0.36007697]
[1644000648554,0.00079554,40470.0,40466.0,0.36007697]
[1644000648856,0.00035346,40471.0,40466.0,0.36007697]
[1644000649056,0.00079595,40470.0,40465.0,0.05]
[1644000649457,0.00114941,40470.0,40461.0,0.21119389]
[1644000649659,0.00079595,40470.0,40461.0,2.70296522]
[1644000649856,0.00079595,40470.0,40462.0,0.336993]
[1644000649857,0.05,40469.0,40462.0,0.336993]
[1644000650056,0.00035346,40469.0,40462.0,2.82876433]
[1644000650257,0.00077959,40468.0,40463.0,2.49177133]
[1644000650556,0.00077959,40468.0,40465.0,0.089]
[1644000651154,0.44253519,40469.0,40465.0,0.089]
[1644000651556,0.44331477,40469.0,40465.0,0.089]
[1644000651755,0.25,40468.0,40465.0,0.089]
[1644000652156,0.331993,40467.0,40465.0,0.089]
[1644000652409,0.331993,40467.0,40461.0,0.014334]
[1644000652608,0.00035346,40467.0,40461.0,0.014334]
[1644000652803,0.25,40468.0,40461.0,0.014334]
[1644000652804,0.25035346,40468.0,40461.0,0.014334]
[1644000653006,0.00035346,40467.0,40461.0,0.014334]
[1644000653206,0.25,40468.0,40462.0,0.3368]
[1644000653207,0.25035346,40468.0,40462.0,0.3368]
[1644000653404,0.00035346,40467.0,40463.0,2.47130313]
[1644000653605,0.25035346,40468.0,40463.0,2.47130313]
[1644000653805,0.25035346,40468.0,40464.0,2.47130313]
[1644000654005,0.0007965,40467.0,40465.0,2.47130313]
[1644000654205,0.0007965,40467.0,40461.0,0.014334]
[1644000654407,0.00114996,40467.0,40461.0,0.014334]
[1644000654606,0.02114996,40467.0,40461.0,0.014334]
[1644000654806,0.02114996,40467.0,40461.0,0.104334]
[1644000654807,0.02035346,40467.0,40461.0,0.104334]
[1644000655011,0.00079711,40466.0,40462.0,0.3368]
[1644000655208,0.01633453,40467.0,40463.0,0.05]
[1644000655407,0.01633453,40467.0,40463.0,2.57879755]
[1644000655607,0.01633453,40467.0,40464.0,0.3868]
[1644000655908,0.01633453,40467.0,40464.0,2.91559755]
[1644000656157,0.01633453,40467.0,40465.0,2.52879755]
[1644000656557,0.135977,40466.0,40461.0,0.014334]
[1644000656959,0.00035347,40466.0,40461.0,0.014334]
[1644000657158,0.016688,40467.0,40461.0,0.014334]
[1644000657363,0.04975347,40466.0,40461.0,2.36904993]
[1644000657562,0.0494,40466.0,40461.0,2.36904993]
[1644000657758,0.04975347,40466.0,40461.0,2.36904993]
[1644000658159,0.04975347,40466.0,40462.0,0.3368]
[1644000658357,0.04975347,40466.0,40464.0,0.05]
[1644000658558,0.0494,40466.0,40463.0,2.65856592]
[1644000658758,0.0494,40466.0,40464.0,2.32176592]
[1644000658759,0.04975347,40466.0,40464.0,2.32176592]
[1644000658958,0.0494,40466.0,40461.0,0.096334]
[1644000659158,0.04975347,40466.0,40461.0,0.096334]
[1644000659559,0.05077107,40466.0,40461.0,2.41809992]
[1644000660007,0.05077107,40466.0,40461.0,2.33609992]
[1644000660213,0.05077107,40466.0,40462.0,0.3368]
[1644000660407,0.05077107,40466.0,40463.0,2.57061833]
[1644000660607,0.0504176,40466.0,40464.0,2.57061833]
[1644000660807,0.05077107,40466.0,40465.0,2.57061833]
[1644000661010,0.0504176,40466.0,40465.0,2.57061833]
[1644000662207,0.1004176,40466.0,40465.0,2.57061833]
[1644000662812,0.0504176,40466.0,40465.0,2.57061833]
[1644000664158,0.1004176,40466.0,40465.0,2.57061833]
[1644000664360,0.0504176,40466.0,40465.0,2.57061833]
[1644000665860,0.26235864,40466.0,40465.0,2.57061833]
[1644000666463,0.0010176,40466.0,40465.0,2.57061833]
[1644000668315,0.01235213,40467.0,40465.0,2.57061833]
[1644000669614,0.01235213,40467.0,40466.0,2.59849968]
[1644000670013,0.22429317,40467.0,40466.0,2.59849968]
[1644000670213,0.20429317,40467.0,40466.0,2.59849968]
[1644000670416,0.30084196,40468.0,40466.0,2.88411786]
[1644000670621,0.26412593,40471.0,40467.0,2.53251355]
[1644000670914,0.00084195,40469.0,40467.0,2.53251355]
[1644000671358,0.00084195,40469.0,40467.0,2.58251355]
[1644000671560,0.00084195,40469.0,40468.0,0.3368]
[1644000671760,0.00035343,40470.0,40468.0,0.3368]
[1644000671958,0.00035343,40471.0,40469.0,0.05]
[1644000672158,0.00334396,40471.0,40469.0,2.56546803]
[1644000672363,0.01704552,40472.0,40469.0,2.56546803]
[1644000672562,0.01739895,40472.0,40469.0,2.56546803]
[1644000672766,0.01704552,40472.0,40469.0,2.53251355]
[1644000672961,0.01704552,40472.0,40470.0,2.52095323]
[1644000673168,0.01739895,40472.0,40471.0,2.52095323]
[1644000673362,0.01704552,40472.0,40471.0,2.52095323]
[1644000673561,0.01704552,40472.0,40466.0,0.35160431]
[1644000673562,0.01704552,40472.0,40467.0,2.52095323]
[1644000673765,0.01704552,40468.0,40467.0,2.52095323]
[1644000674164,0.16114074,40468.0,40467.0,2.52095323]
[1644000674365,0.70336494,40468.0,40467.0,2.39187524]
[1644000674566,1.01749087,40468.0,40467.0,2.39187524]
[1644000674816,0.42884852,40468.0,40467.0,2.39187524]
[1644000675010,0.36704552,40468.0,40467.0,2.39187524]
[1644000675209,0.26704552,40468.0,40467.0,2.39187524]
[1644000676012,0.26704552,40468.0,40465.0,2.39187524]
[1644000676209,0.26739895,40468.0,40465.0,2.39187524]
[1644000676410,0.26704552,40468.0,40465.0,2.39187524]
[1644000676810,0.26704552,40468.0,40466.0,2.32473841]
[1644000677013,0.26704552,40468.0,40467.0,2.32473841]
[1644000677210,0.39654108,40468.0,40465.0,2.32473841]
[1644000678011,0.26704552,40468.0,40466.0,2.32473841]
[1644000678211,0.26704552,40468.0,40467.0,2.32473841]
[1644000678417,0.26704552,40468.0,40467.0,2.55315685]
[1644000678860,0.41790145,40468.0,40467.0,2.55315685]
[1644000679159,0.41790145,40468.0,40465.0,2.55315685]
[1644000680361,0.21204783,40467.0,40466.0,2.53108261]
[1644000680561,0.26704552,40468.0,40466.0,2.53108261]
[1644000680764,0.26704552,40468.0,40467.0,2.53108261]
[1644000680967,0.26704552,40468.0,40465.0,2.53108261]
[1644000681164,0.21204705,40467.0,40465.0,2.53108261]
[1644000681562,0.21204705,40467.0,40466.0,2.53108261]
[1644000681963,0.26704552,40468.0,40466.0,2.53108261]
[1644000682167,0.21205429,40467.0,40464.0,0.00084204]
[1644000682612,0.21205429,40467.0,40463.0,2.57942781]
[1644000682815,0.01704552,40465.0,40463.0,0.00084205]
[1644000683014,0.01704552,40465.0,40463.0,2.58026986]
[1644000683415,0.22909981,40465.0,40463.0,2.58026986]
[1644000683621,0.01704552,40465.0,40463.0,2.58026986]
[1644000683816,0.01704552,40465.0,40463.0,2.57942781]
[1644000684018,0.01704552,40465.0,40464.0,2.57942781]
[1644000684616,0.01704552,40465.0,40464.0,2.5189305]
[1644000685017,0.01704552,40465.0,40463.0,2.5189305]
[1644000685219,0.01704552,40465.0,40463.0,2.55188498]
[1644000685418,0.01704552,40465.0,40464.0,0.3368]
[1644000685617,0.01704552,40465.0,40464.0,2.8557305]
[1644000685817,0.01704552,40465.0,40464.0,2.88868498]
[1644000686272,0.25,40468.0,40464.0,3.10091837]
[1644000686465,0.01704552,40466.0,40465.0,2.53000618]
[1644000686664,0.01704552,40466.0,40465.0,2.79991418]
[1644000687566,0.26704552,40468.0,40465.0,2.53000618]
[1644000688169,0.26704552,40468.0,40467.0,0.03295448]
[1644000688366,0.26704552,40468.0,40467.0,2.40366084]
[1644000688771,0.26704552,40468.0,40467.0,2.37070636]
[1644000689368,0.26704552,40468.0,40464.0,0.24603031]
[1644000689369,0.40679696,40468.0,40465.0,2.37070636]
[1644000689569,0.2122347,40467.0,40465.0,2.37070636]
[1644000690415,0.21223506,40467.0,40466.0,0.03295448]
[1644000690613,0.47928058,40468.0,40466.0,2.40551922]
[1644000690814,0.47928058,40468.0,40467.0,2.40551922]
[1644000691217,0.26704552,40468.0,40467.0,2.40551922]
[1644000692419,0.25,40468.0,40467.0,0.36975448]
[1644000692622,0.01704552,40472.0,40468.0,1.55]
[1644000692623,0.00084233,40470.0,40468.0,1.55]
[1644000692823,0.00035343,40473.0,40470.0,1.55]
[1644000693018,0.00035343,40474.0,40472.0,1.58295448]
[1644000693220,0.00035343,40476.0,40474.0,0.35645941]
[1644000694065,0.615,40479.0,40478.0,2.95916213]
[1644000694461,0.615,40479.0,40478.0,2.89739613]
[1644000694861,0.615,40479.0,40478.0,2.86444165]
[1644000695060,0.615,40479.0,40478.0,2.89739613]
[1644000695261,1.765,40479.0,40478.0,2.10295937]
[1644000695477,1.765,40479.0,40468.0,0.1169]
[1644000695478,1.60706043,40479.0,40468.0,0.1169]
[1644000695665,0.13084206,40467.0,40466.0,0.01867092]
[1644000695867,0.13084206,40467.0,40466.0,2.50905078]
[1644000696461,0.13084206,40467.0,40454.0,0.37139707]
[1644000696462,0.448557,40467.0,40454.0,0.37139707]
[1644000696664,0.0494,40466.0,40454.0,0.37139707]
[1644000696862,0.05,40464.0,40455.0,0.061798]
[1644000697062,0.05,40464.0,40458.0,0.115]
[1644000697517,0.25,40464.0,40460.0,0.3316873]
[1644000698415,0.25,40464.0,40458.0,0.165]
[1644000698616,0.06867092,40467.0,40458.0,0.165]
[1644000698816,0.06867092,40467.0,40457.0,0.061794]
[1644000699116,0.0494,40466.0,40457.0,0.061794]
[1644000699320,0.0494,40466.0,40457.0,0.45017508]
[1644000699518,0.0494,40466.0,40458.0,0.269851]
[1644000700116,0.0494,40466.0,40460.0,0.061792]
[1644000700317,0.0494,40466.0,40458.0,2.23564846]
[1644000700516,0.05051765,40467.0,40462.0,0.05]
[1644000700718,0.061792,40470.0,40463.0,0.269811]
[1644000700917,0.0494,40469.0,40466.0,0.01867092]
[1644000701563,0.0494,40469.0,40466.0,2.25431938]
[1644000702764,0.0494,40469.0,40468.0,0.5]
[1644000702965,0.0625877,40470.0,40468.0,0.5]
[1644000702966,0.0625877,40470.0,40468.0,0.05]
[1644000703266,0.061792,40470.0,40468.0,2.30650498]
[1644000703465,0.061792,40470.0,40468.0,2.25650498]
[1644000703665,0.061792,40470.0,40469.0,2.25650498]
[1644000704064,0.056792,40470.0,40469.0,2.25650498]
[1644000704470,0.056792,40470.0,40469.0,1.37622307]
[1644000704926,0.0494,40471.0,40469.0,1.37622307]
[1644000705124,0.0494,40471.0,40470.0,1.37622307]
[1644000706224,0.0494,40471.0,40465.0,1.37622307]
[1644000706824,0.25654865,40471.0,40466.0,1.36758683]
[1644000707030,0.25654865,40471.0,40467.0,1.36758683]
[1644000707224,0.00081978,40470.0,40468.0,1.36758683]
[1644000707424,0.00081978,40470.0,40468.0,1.31258683]
[1644000707726,0.00081978,40470.0,40468.0,0.05]
[1644000708125,0.0444,40471.0,40468.0,0.05]
[1644000708562,0.23,40470.0,40468.0,2.27250944]
[1644000709462,0.23,40470.0,40469.0,0.05]
[1644000709665,0.23,40470.0,40469.0,2.27250944]
[1644000710262,0.23,40470.0,40469.0,2.22250944]
[1644000710565,0.23,40470.0,40469.0,2.21277807]
[1644000712613,0.23,40470.0,40469.0,1.93155575]
[1644000713713,0.22,40470.0,40469.0,1.93155575]
[1644000714118,0.22,40470.0,40469.0,2.08155575]
[1644000714315,0.22,40470.0,40469.0,2.35132375]
[1644000715815,0.22,40470.0,40469.0,2.25132375]
[1644000718368,0.22,40470.0,40469.0,1.93155575]
[1644000718568,0.22,40470.0,40469.0,2.21867526]
[1644000719368,0.22,40470.0,40469.0,0.269763]
[1644000719567,0.22,40470.0,40465.0,2.21867526]
[1644000719568,0.22,40470.0,40466.0,2.21867526]
[1644000719819,0.22,40470.0,40467.0,0.269777]
[1644000720018,0.22,40470.0,40468.0,2.21867526]
[1644000720211,0.22,40470.0,40469.0,2.21867526]
[1644000720613,0.22,40470.0,40469.0,2.17725337]
[1644000720812,0.00034656,40471.0,40466.0,2.17725337]
[1644000721014,0.00034656,40471.0,40466.0,4.97094062]
[1644000721212,0.00034656,40471.0,40467.0,2.44703037]
[1644000721411,0.00034656,40471.0,40466.0,0.05]
[1644000721412,0.0494,40473.0,40468.0,2.17725337]
[1644000721618,0.0494,40473.0,40469.0,2.17725337]
[1644000721814,0.00075805,40471.0,40470.0,2.17725337]
[1644000722621,0.0494,40473.0,40467.0,1.99239327]
[1644000722817,0.05015803,40473.0,40467.0,1.99239327]
[1644000723017,0.08,40472.0,40467.0,1.99239327]
[1644000723218,0.08,40472.0,40468.0,0.26977]
[1644000723420,0.08,40472.0,40468.0,2.26216327]
[1644000723658,0.08,40472.0,40469.0,1.99239327]
[1644000724058,0.08075803,40472.0,40470.0,1.99239327]
[1644000724259,0.08075803,40472.0,40471.0,1.99239327]
[1644000724461,0.08075803,40472.0,40471.0,2.01276415]
[1644000724859,0.08075803,40472.0,40467.0,2.01276415]
[1644000725059,0.08,40472.0,40467.0,2.01276415]
[1644000725264,0.08,40471.0,40468.0,0.269768]
[1644000725462,0.08,40471.0,40468.0,2.28253215]
[1644000725664,0.08,40471.0,40469.0,2.01276415]
[1644000725861,0.08,40471.0,40470.0,2.01276415]
[1644000726460,0.08,40471.0,40470.0,2.25690237]
[1644000726958,0.08,40471.0,40467.0,2.25690237]
[1644000727159,0.21585318,40468.0,40467.0,2.25690237]
[1644000727424,0.26585318,40468.0,40467.0,2.25690237]
[1644000727621,0.60096836,40468.0,40467.0,2.25690237]
[1644000727826,0.31525318,40468.0,40467.0,2.25690237]
[1644000728217,0.1794,40468.0,40467.0,2.25690237]
[1644000728420,0.1794,40468.0,40467.0,2.1083287]
[1644000728619,0.1794,40468.0,40466.0,2.1083287]